bitfinex/quotes_ETHUSD_20240709
["timestamp","ask_amount","ask_price","bid_price","bid_amount"]
[1720493275305,0.654818,3054.2,3053.0,3.27543]
[1720493275306,3.929028,3054.2,3053.0,3.27543]
[1720493275506,0.3929028,3054.1,3053.5,3.27492]
[1720493275729,5.65162,3054.7,3053.6,0.0654935]
[1720493275935,3.243041,3054.7,3053.8,3.27453]
[1720493276236,6.27385,3054.6,3053.4,3.27501]
[1720493276424,6.27385,3054.6,3053.5,0.61548556]
[1720493276793,2.3779,3054.7,3053.5,0.61548556]
[1720493276794,2.3779,3054.7,3054.0,3.27436]
[1720493276995,2.3779,3054.7,3054.1,3.27427]
[1720493277214,2.3779,3054.7,3053.9,3.27448]
[1720493277417,2.3779,3054.7,3054.1,3.27427]
[1720493278307,2.94304,3054.7,3053.9,3.27449]
[1720493278632,2.94304,3054.7,3053.8,0.06547952]
[1720493278633,3.27378,3054.6,3053.5,11.26483]
[1720493278945,3.27378,3054.6,3053.6,3.27481]
[1720493279293,5.65163,3054.7,3053.6,0.06548491]
[1720493279294,2.3779,3054.7,3053.6,0.06548491]
[1720493279493,2.3779,3054.7,3053.7,0.55]
[1720493279745,0.478673,3055.5,3055.3,3.27294]
[1720493279951,0.53671725,3055.7,3055.4,3.27289]
[1720493280368,0.53671725,3055.7,3054.9,3.27334]
[1720493280576,0.53671725,3055.7,3055.1,3.27314]
[1720493280727,0.97312498,3055.7,3055.0,3.27324]
[1720493280930,0.53671725,3055.7,3055.0,3.27324]
[1720493281424,3.27276,3055.6,3054.7,3.27363]
[1720493281646,0.53671725,3055.7,3054.4,3.06546276]
[1720493281855,0.53671725,3055.7,3054.0,2.70757073]
[1720493281856,3.70919973,3055.6,3054.5,3.27382]
[1720493282057,3.70919973,3055.6,3054.4,3.27395]
[1720493282058,2.3917,3055.3,3054.4,3.27395]
[1720493282225,5.6647,3055.3,3054.2,3.27411]
[1720493282423,5.6647,3055.3,3053.8,0.09313285]
[1720493282424,3.27348,3054.9,3054.0,3.27439]
[1720493282954,0.56647,3055.2,3053.8,0.09313285]
[1720493282955,3.467,3055.1,3053.8,0.09313285]
[1720493283159,2.3546,3054.4,3053.8,0.09313285]
[1720493283862,5.8216,3054.4,3053.8,0.09313285]
[1720493284027,6.549,3053.9,3053.8,0.09313285]
[1720493284360,7.2039,3053.9,3053.8,0.09313285]
[1720493285274,3.9294,3053.9,3053.8,0.09313285]
[1720493285556,3.27419,3054.2,3053.8,0.09313285]
[1720493285925,2.3546,3054.4,3053.8,0.09313285]
[1720493285926,3.2745,3053.9,3053.8,0.09313285]
[1720493286335,6.549,3053.9,3053.8,0.09313285]
[1720493286945,4.3306,3054.4,3053.8,0.09313285]
[1720493286946,2.3546,3054.4,3053.8,0.09313285]
[1720493287147,3.27442,3054.0,3053.8,0.09313285]
[1720493287561,2.3546,3054.4,3053.8,0.09313285]
[1720493287870,3.27418,3054.2,3053.8,0.09313285]
[1720493288032,3.2744,3054.0,3053.8,0.09313285]
[1720493288736,3.2745,3053.9,3053.8,0.09313285]
[1720493289348,6.549,3053.9,3053.8,0.09313285]
[1720493289729,3.2744,3054.0,3053.8,0.09313285]
[1720493289925,3.2745,3053.9,3053.8,0.09313285]
[1720493290567,3.50957,3054.3,3053.8,0.09313285]
[1720493290870,3.27428,3054.1,3053.8,0.09313285]
[1720493291072,2.3546,3054.4,3053.8,0.09313285]
[1720493291233,2.59006,3054.4,3053.8,0.09313285]
[1720493291432,3.27327,3055.1,3053.9,3.27447]
[1720493291433,3.2735,3054.9,3053.9,3.27447]
[1720493291741,2.486,3055.2,3054.0,0.06548287]
[1720493291941,2.486,3055.2,3054.3,3.27405]
[1720493292145,2.486,3055.2,3054.0,0.06548287]
[1720493292146,3.52182,3055.1,3054.0,0.06548287]
[1720493292343,0.2486,3055.1,3053.8,0.09313285]
[1720493292570,3.27396,3054.5,3053.8,0.09313285]
[1720493292732,0.327396,3054.4,3053.8,0.09313285]
[1720493293133,3.27366,3054.7,3053.8,0.09313285]
[1720493293565,3.27388,3054.5,3053.8,0.09313285]
[1720493293866,5.75917,3055.2,3054.3,3.27406]
[1720493293867,2.486,3055.2,3054.3,3.27406]
[1720493294165,3.27323,3055.1,3054.1,3.27425]
[1720493294333,3.52183,3055.1,3054.2,3.27413]
[1720493295136,3.2734,3055.0,3053.8,3.36764285]
[1720493295348,3.2735,3054.9,3053.9,3.2745]
[1720493296166,0.6008,3055.0,3054.2,3.27415]
[1720493296346,3.52185,3055.1,3054.2,3.27415]
[1720493296942,2.486,3055.2,3054.3,0.06547627]
[1720493297143,2.486,3055.2,3054.2,3.27415]
[1720493297469,3.27322,3055.1,3053.8,3.36764285]
[1720493297656,5.953,3055.2,3053.8,0.09313285]
[1720493297861,3.27376,3054.6,3053.8,0.09313285]
[1720493298182,3.27356,3054.8,3053.8,0.09313285]
[1720493298361,3.467,3055.0,3053.8,0.09313285]
[1720493298362,3.27396,3054.4,3053.8,0.09313285]
[1720493298546,2.486,3055.2,3053.8,0.09313285]
[1720493298866,0.53671725,3055.7,3055.0,3.27332]
[1720493299236,0.53671725,3055.7,3054.6,0.06545932]
[1720493299457,3.80930725,3055.7,3054.9,3.27334]
[1720493299640,3.80930725,3055.7,3054.9,3.2734]
[1720493299641,4.47753298,3055.7,3054.9,3.2734]
[1720493299856,1.20494298,3055.7,3055.1,3.27321]
[1720493300167,0.53671725,3055.7,3055.3,3.27298]
[1720493300372,0.53671725,3055.7,3054.5,7.44]
[1720493300373,0.53671725,3055.7,3055.6,3.27267]
[1720493300737,0.53671725,3055.7,3055.6,6.54534]
[1720493300965,0.53671725,3055.7,3055.6,3.27267]
[1720493302378,0.53671725,3055.7,3055.6,6.54534]
[1720493302551,0.53671725,3055.7,3055.6,7.09534]
[1720493302752,0.555,3056.3,3056.2,6.54406]
[1720493302971,0.555,3056.3,3056.2,6.60948826]
[1720493303285,0.555,3056.5,3056.3,9.81579]
[1720493303575,0.555,3056.5,3056.3,13.36579]
[1720493303738,0.555,3056.5,3056.3,15.30379]
[1720493303948,1e-05,3056.4,3056.3,18.57572]
[1720493304136,0.02739077,3058.1,3057.3,3.27084]
[1720493304368,0.02739077,3058.1,3056.8,3.2713]
[1720493304369,0.02739077,3058.1,3057.5,3.27062]
[1720493304547,0.27030985,3058.1,3057.5,3.27062]
[1720493304851,0.27030985,3058.1,3057.2,3.27095]
[1720493305061,0.02739077,3058.1,3057.0,3.27117]
[1720493305342,3.29742077,3058.1,3057.2,3.27092]
[1720493305541,3.27012,3058.0,3057.2,3.27092]
[1720493305748,0.59731285,3058.1,3056.4,3.27181]
[1720493305971,0.59731285,3058.1,3056.1,3.27214]
[1720493305972,3.27084,3057.4,3056.1,3.27214]
[1720493306182,3.2711,3057.1,3055.5,8.8234]
[1720493306366,3.2711,3057.1,3056.0,3.27222]
[1720493306551,3.27054,3057.6,3056.1,0.0654327]
[1720493306754,3.834934,3057.6,3056.7,3.27149]
[1720493307585,3.834934,3057.6,3056.3,3.27189]
[1720493307765,3.27088,3057.3,3056.5,3.27171]
[1720493308076,3.834934,3057.6,3055.8,3.33778838]
[1720493308077,3.27069,3057.5,3056.6,3.2716]
[1720493308378,5.64383,3057.7,3056.4,3.27179]
[1720493308379,2.3734,3057.7,3057.0,3.27115]
[1720493308576,5.64391,3057.7,3056.8,3.27134]
[1720493308801,3.27077,3057.4,3056.0,3.27216]
[1720493308942,3.597937,3057.3,3055.7,3.0]
[1720493309146,3.27066,3057.5,3056.5,3.27162]
[1720493309349,3.27066,3057.5,3056.7,3.27147]
[1720493309659,3.27086,3057.3,3056.0,7.44]
[1720493309865,0.327086,3057.2,3055.8,3.27236]
[1720493310091,0.327086,3057.2,3055.5,10.71277]
[1720493310092,0.327086,3057.2,3055.5,7.44]
[1720493310391,3.27088,3057.3,3056.4,3.27176]
[1720493310749,2.3734,3057.7,3056.5,0.06542595]
[1720493310950,2.3734,3057.7,3057.0,3.27114]
[1720493311490,2.3734,3057.7,3057.1,3.27106]
[1720493311680,2.3734,3057.7,3056.4,3.06541971]
[1720493311975,2.3734,3057.7,3057.3,3.27077]
[1720493312178,5.8812,3057.7,3056.7,3.2714]
[1720493312382,3.27057,3057.6,3056.6,3.27153]
[1720493312545,4.185897,3057.5,3056.5,3.27171]
[1720493312746,0.915177,3057.5,3056.7,3.27148]
[1720493312942,5.64386,3057.7,3056.8,3.27131]
[1720493313179,5.64386,3057.7,3056.9,3.27128]
[1720493313378,0.02754123,3058.2,3057.4,3.27072]
[1720493314086,0.02754123,3058.2,3056.8,3.27131]
[1720493314087,3.27034,3057.8,3056.8,3.27131]
[1720493314249,3.27057,3057.6,3056.6,3.27158]
[1720493314450,0.23334412,3058.1,3057.1,3.27099]
[1720493314649,0.23334412,3058.1,3057.0,3.27113]
[1720493314878,0.35308254,3058.0,3057.3,3.27085]
[1720493315180,0.02754123,3058.2,3057.5,3.27062]
[1720493317198,0.02754123,3058.2,3057.7,3.27041]
[1720493317354,0.02754123,3058.2,3057.8,3.33570199]
[1720493318076,0.02754123,3058.2,3058.1,6.54]
[1720493318284,0.02754123,3058.2,3058.1,7.15538265]
[1720493318589,0.02754123,3058.2,3058.1,10.42538265]
[1720493318757,0.02754123,3058.2,3058.1,10.09]
[1720493319290,0.02754123,3058.2,3058.1,6.54]
[1720493319489,0.02754123,3058.2,3058.1,7.09]
[1720493320259,0.02754123,3058.2,3058.1,3.27]
[1720493320770,0.02754123,3058.2,3057.9,3.27018]
[1720493321012,0.02754123,3058.2,3057.9,0.06539463]
[1720493321165,0.02754123,3058.2,3058.1,3.27]
[1720493321368,0.02754123,3058.2,3057.3,3.27084]
[1720493321689,0.02754123,3058.2,3057.1,3.27103]
[1720493321892,0.3682799,3058.2,3056.7,3.27147]
[1720493322065,3.27035,3057.8,3056.7,3.27147]
[1720493322261,3.2706,3057.6,3056.6,3.27158]
[1720493322457,3.2706,3057.6,3056.7,3.27147]
[1720493322656,2.477,3058.1,3057.4,3.27074]
[1720493322897,2.477,3058.1,3057.5,3.3359957]
[1720493323065,0.02754123,3058.2,3058.1,3.27]
[1720493323471,1e-08,3058.2,3058.1,3.27]
[1720493324667,1e-08,3058.2,3058.1,3.33539086]
[1720493324873,1e-08,3058.2,3058.1,3.27]
[1720493325074,1e-08,3058.2,3057.8,3.27026]
[1720493325265,1e-08,3058.2,3057.2,3.2709]
[1720493325266,1e-08,3058.2,3057.2,3.27087]
[1720493325468,1e-08,3058.2,3057.4,3.27074]
[1720493325762,1e-08,3058.2,3057.3,3.27083]
[1720493326191,1e-08,3058.2,3057.0,3.27115]
[1720493326192,3.26995001,3058.2,3057.0,3.27115]
[1720493326513,3.26995001,3058.2,3056.9,7.44]
[1720493326514,3.27042,3057.8,3056.9,10.71128]
[1720493326659,2.477,3057.9,3057.0,0.06541721]
[1720493326858,2.477,3057.9,3057.2,3.27093]
[1720493327059,2.477,3057.9,3056.9,7.44]
[1720493327060,2.477,3057.9,3057.4,3.27066]
[1720493327292,2.477,3057.9,3057.2,3.27089]
[1720493327494,2.477,3057.9,3057.0,0.06540559]
[1720493327495,2.477,3057.9,3057.3,3.27085]
[1720493327695,2.477,3057.9,3057.4,3.27068]
[1720493327898,2.477,3057.9,3057.6,3.27046]
[1720493328100,1e-08,3058.2,3057.6,3.33586379]
[1720493328398,1e-08,3058.2,3057.8,3.27022]
[1720493328693,1e-08,3058.2,3057.8,3.2703]
[1720493328991,1e-08,3058.2,3058.1,3.27]
[1720493329397,1e-08,3058.2,3057.7,3.27042]
[1720493329620,1e-08,3058.2,3057.0,3.0]
[1720493329621,1e-08,3058.2,3057.3,3.27082]
[1720493329759,1e-08,3058.2,3057.4,3.55]
[1720493329962,1e-08,3058.2,3057.3,3.27082]
[1720493330175,3.85559556,3058.2,3057.1,3.27104]
[1720493330421,1e-08,3058.2,3057.7,3.27039]
[1720493330707,1e-08,3058.2,3057.5,3.27062]
[1720493330901,3.27013,3058.0,3057.0,3.0]
[1720493331116,3.27044,3057.7,3056.9,7.44]
[1720493331324,3.597584,3057.6,3056.9,7.44]
[1720493331615,3.27054,3057.6,3056.9,7.44]
[1720493332463,3.27075,3057.5,3056.4,3.27172]
[1720493332662,3.27076,3057.4,3056.5,3.0]
[1720493332868,3.27076,3057.4,3056.5,6.27168]
[1720493333289,3.27076,3057.4,3056.2,3.27195]
[1720493333290,5.66306,3057.3,3056.2,3.27195]
[1720493333503,2.3922,3057.3,3055.9,3.27232]
[1720493333702,3.27139,3056.8,3055.9,3.27232]
[1720493334314,3.27139,3056.8,3055.7,3.27254]
[1720493334467,3.27161,3056.6,3055.6,7.44]
[1720493334815,3.27161,3056.6,3055.6,10.71258]
[1720493335012,4.15263,3056.6,3055.6,10.71258]
[1720493335181,3.27187,3056.4,3055.6,7.44]
[1720493335372,3.27221,3056.1,3055.1,3.27321]
[1720493335564,3.845551,3056.0,3055.0,1.311861]
[1720493335932,3.27257,3055.7,3054.7,3.27354]
[1720493336209,3.27257,3055.7,3054.5,3.27385]
[1720493336210,5.7346,3055.6,3054.5,3.27385]
[1720493336366,5.73458,3055.6,3054.8,3.27351]
[1720493336774,2.4619,3055.6,3054.9,3.27342]
[1720493338377,3.035347,3055.6,3054.7,3.27358]
[1720493338593,3.035347,3055.6,3054.6,3.27373]
[1720493338594,3.035347,3055.6,3054.8,3.27347]
[1720493339101,3.035347,3055.6,3054.9,3.27339]
[1720493339281,2.4619,3055.6,3054.9,3.27339]
[1720493339477,2.4619,3055.6,3054.8,3.27347]
[1720493340103,2.4619,3055.6,3054.9,3.27342]
[1720493340314,3.2729,3055.4,3054.5,3.27378]
[1720493340513,3.2729,3055.4,3054.3,3.27399]
[1720493340514,3.84638,3055.4,3054.3,3.27399]
[1720493340719,0.57348,3055.4,3054.5,3.27378]
[1720493340908,3.84639,3055.4,3054.5,3.27378]
[1720493341617,3.84639,3055.4,3054.6,3.27372]
[1720493341784,2.4619,3055.6,3054.9,3.27334]
[1720493341986,2.4619,3055.6,3055.5,3.27278]
[1720493342334,5.55803,3056.6,3055.8,3.27246]
[1720493342940,3.27211,3056.2,3055.2,3.27307]
[1720493343221,3.467,3056.5,3055.1,0.06545603]
[1720493343222,3.27177,3056.5,3055.1,0.06545603]
[1720493343385,3.27177,3056.5,3055.6,3.27263]
[1720493343583,0.9712793,3056.4,3055.6,3.27263]
[1720493344198,0.9712793,3056.4,3055.7,3.27251]
[1720493344519,4.2431293,3056.4,3054.8,3.27344]
[1720493344731,2.2864,3056.6,3055.0,3.2733]
[1720493344945,2.2864,3056.6,3056.1,3.2721]
[1720493345238,2.2864,3056.6,3056.2,3.27199]
[1720493345389,2.2864,3056.6,3056.1,3.2721]
[1720493345588,10.63049,3057.7,3055.6,7.44]
[1720493345589,2.3857,3058.1,3057.4,3.27065]
[1720493345820,2.3857,3058.1,3057.5,3.2706]
[1720493346197,2.3857,3058.1,3057.6,3.27051]
[1720493346394,2.3857,3058.1,3055.9,0.99684385]
[1720493346395,2.3857,3058.1,3056.0,0.66456257]
[1720493346596,2.3857,3058.1,3056.3,0.61541679]
[1720493346816,2.3857,3058.1,3057.5,3.27063]
[1720493347091,0.23857,3058.0,3057.5,3.27063]
[1720493347291,0.23857,3058.0,3057.6,3.27051]
[1720493347531,2.3857,3058.1,3057.6,3.27051]
[1720493347730,2.3857,3058.1,3057.5,3.27063]
[1720493347904,2.3857,3058.1,3057.9,3.27012]
[1720493348229,2.3857,3058.1,3058.0,3.27011]
[1720493348433,0.1101655,3058.4,3058.1,3.27]
[1720493348800,0.1101655,3058.4,3058.0,3.27011]
[1720493348996,0.1101655,3058.4,3056.5,4.65508]
[1720493348997,0.1101655,3058.4,3057.3,3.27083]
[1720493349196,0.1101655,3058.4,3057.2,3.27095]
[1720493349197,3.2698,3058.3,3057.2,3.27095]
[1720493349439,0.32698,3058.1,3057.2,3.27095]
[1720493349638,0.32698,3058.1,3056.3,3.8219]
[1720493349908,0.1101655,3058.4,3057.6,3.27048]
[1720493350131,0.1101655,3058.4,3057.8,3.27029]
[1720493350337,0.1101655,3058.4,3057.9,3.27016]
[1720493350637,0.1101655,3058.4,3057.7,3.27035]
[1720493350939,0.1101655,3058.4,3057.8,3.2703]
[1720493351108,3.3798955,3058.4,3057.5,3.27064]
[1720493351308,0.33798956,3058.2,3057.3,3.27078]
[1720493351530,1e-08,3058.2,3056.8,7.44]
[1720493351743,1e-08,3058.2,3057.8,3.27023]
[1720493351943,1e-08,3058.2,3057.9,3.27014]
[1720493352320,1e-08,3058.2,3058.0,3.27009]
[1720493352529,1e-08,3058.2,3058.1,3.27]
[1720493352727,1e-08,3058.2,3058.1,6.60539837]
[1720493353036,0.1101655,3058.4,3058.3,9.80937]
[1720493353344,0.1101655,3058.4,3058.3,10.35937]
[1720493353720,0.1101655,3058.4,3058.3,3.26979]
[1720493354229,0.1101655,3058.4,3058.1,3.26994]
[1720493354429,0.1101655,3058.4,3057.8,3.2703]
[1720493354430,0.1101655,3058.4,3057.9,3.27012]
[1720493354657,0.1101655,3058.4,3057.4,3.27073]
[1720493354955,0.1101655,3058.4,3058.3,3.26979]
[1720493355343,0.1101655,3058.4,3058.3,6.53958]
[1720493355535,0.1101655,3058.4,3058.3,7.15495957]
[1720493355732,0.1101655,3058.4,3058.3,10.42474957]
[1720493356020,0.1101655,3058.4,3058.3,13.42474957]
[1720493356226,0.1101655,3058.4,3058.3,13.35937]
[1720493356841,0.1101655,3058.4,3058.3,10.08958]
[1720493357040,0.1101655,3058.4,3058.3,6.53958]
[1720493357559,0.1101655,3058.4,3058.0,3.27011]
[1720493357757,0.1101655,3058.4,3057.9,3.27019]
[1720493357933,0.1101655,3058.4,3058.0,3.2701]
[1720493358256,0.1101655,3058.4,3056.9,7.44]
[1720493358434,5.72179,3058.3,3057.0,3.27111]
[1720493358842,3.27,3058.1,3057.1,3.27106]
[1720493359280,0.88195045,3058.1,3057.5,3.27054]
[1720493359480,5.72181,3058.3,3057.5,3.27054]
[1720493359664,2.452,3058.3,3057.6,3.27046]
[1720493359864,2.452,3058.3,3057.4,0.06540785]
[1720493359865,2.452,3058.3,3057.4,3.27071]
[1720493360065,0.1101655,3058.4,3058.0,3.27003]
[1720493360779,0.1101655,3058.4,3058.1,3.26991]
[1720493360965,0.1101655,3058.4,3058.2,0.06539192]
[1720493361166,0.1101655,3058.4,3057.6,6.33586192]
[1720493361382,0.1101655,3058.4,3058.3,3.26979]
[1720493361683,0.1101655,3058.4,3058.3,6.53958]
[1720493362183,0.1101655,3058.4,3057.8,3.27031]
[1720493362550,0.1101655,3058.4,3057.7,0.55]
[1720493362551,0.1101655,3058.4,3057.9,3.27021]
[1720493362749,0.1101655,3058.4,3058.1,3.26999]
[1720493362993,0.1101655,3058.4,3057.8,3.27028]
[1720493363149,0.1101655,3058.4,3058.3,3.26979]
[1720493363355,0.1101655,3058.4,3058.3,6.53958]
[1720493363551,0.1101655,3058.4,3058.3,7.15496189]
[1720493363751,0.1101655,3058.4,3058.3,10.42475189]
[1720493363975,5.5e-06,3058.4,3058.3,16.69454189]
[1720493365083,5.5e-06,3058.4,3058.3,13.42475189]
[1720493365400,5.5e-06,3058.4,3058.3,13.35937]
[1720493365593,5.5e-06,3058.4,3058.3,9.53958]
[1720493365754,3.26829,3059.7,3059.0,3.26902]
[1720493366082,0.326829,3059.6,3058.4,10.70964]
[1720493366288,3.26862,3059.4,3058.4,7.44]
[1720493366470,0.326829,3059.6,3058.6,3.26945]
[1720493366471,3.595269,3059.6,3058.6,3.26945]
[1720493366710,3.595269,3059.6,3058.4,10.70967]
[1720493366711,2.3154,3059.4,3058.4,10.70967]
[1720493367007,3.26873,3059.3,3058.4,7.44]
[1720493367791,3.26873,3059.3,3058.4,10.70967]
[1720493367977,2.3154,3059.4,3058.6,3.26945]
[1720493367978,5.58401,3059.4,3058.6,3.26945]
[1720493368182,5.8482329,3059.4,3058.6,3.26945]
[1720493368501,3.26872,3059.3,3058.6,3.26942]
[1720493368706,2.5796229,3059.4,3058.6,3.26942]
[1720493369298,3.26872,3059.3,3058.6,3.26942]
[1720493370621,3.26872,3059.3,3058.5,3.26957]
[1720493370622,3.85355429,3059.3,3058.5,3.26957]
[1720493371495,3.85355429,3059.3,3058.2,3.26986]
[1720493371807,3.85355429,3059.3,3058.3,3.26976]
[1720493372005,0.64331772,3059.2,3058.3,3.26976]
[1720493372192,0.64331772,3059.2,3058.4,3.26964]
[1720493372504,0.64331772,3059.2,3057.8,4.580898]
[1720493372668,0.64331772,3059.2,3058.5,3.26957]
[1720493373069,0.58483429,3059.3,3058.8,3.26916]
[1720493373273,2.3154,3059.4,3058.9,3.26912]
[1720493373493,2.3154,3059.4,3059.1,3.26884]
[1720493374397,2.3154,3059.4,3058.9,3.26906]
[1720493374590,2.3154,3059.4,3059.1,3.26884]
[1720493375099,2.3154,3059.4,3058.7,3.26928]
[1720493375303,2.3154,3059.4,3058.8,3.26924]
[1720493376790,2.3154,3059.4,3058.6,3.26945]
[1720493376997,2.3154,3059.4,3058.7,3.26935]
[1720493377197,2.3154,3059.4,3059.0,3.26903]
[1720493378299,2.3154,3059.4,3059.1,3.26886]
[1720493379206,2.3154,3059.4,3059.2,3.26873]
[1720493379406,2.3154,3059.4,3059.0,3.26903]
[1720493379813,2.3154,3059.4,3059.1,3.2689]
[1720493380626,2.3154,3059.4,3058.9,3.26907]
[1720493381461,3.26911,3059.0,3058.0,3.2701]
[1720493381596,3.26911,3059.0,3057.3,7.44]
[1720493381792,3.26911,3059.0,3058.2,3.26987]
[1720493382123,0.653814,3058.9,3058.3,3.26978]
[1720493382333,3.26911,3059.0,3058.3,3.26978]
[1720493382633,3.26911,3059.0,3058.0,3.27009]
[1720493382999,2.54694,3059.4,3057.7,3.27039]
[1720493383000,2.3303,3058.8,3057.7,3.27039]
[1720493383198,3.26937,3058.7,3057.9,3.0]
[1720493383395,3.26937,3058.7,3057.7,3.27039]
[1720493384336,3.26948,3058.6,3057.7,3.27039]
[1720493384842,3.26948,3058.6,3057.6,3.27053]
[1720493385035,2.3303,3058.8,3057.5,7.44]
[1720493385036,3.923555,3058.5,3057.5,7.44]
[1720493385237,3.923555,3058.5,3057.0,4.582186]
[1720493385238,2.2773,3058.4,3057.0,4.582186]
[1720493385458,3.27021,3058.0,3057.0,1.311016]
[1720493385608,3.27057,3057.6,3056.8,7.44]
[1720493385809,3.27057,3057.6,3056.6,3.27159]
[1720493386741,3.27057,3057.6,3056.7,3.27139]
[1720493386945,3.27057,3057.6,3056.8,3.27131]
[1720493387238,5.54764,3057.8,3056.7,3.27139]
[1720493387443,2.2773,3057.8,3057.2,3.27088]
[1720493387825,2.2773,3057.8,3057.1,3.27107]
[1720493388343,2.2773,3057.8,3057.4,3.27073]
[1720493388641,2.2773,3057.8,3056.5,6.27163]
[1720493388642,2.2773,3057.8,3056.8,0.06540654]
[1720493388946,2.2773,3057.8,3057.2,3.27091]
[1720493389114,2.2773,3057.8,3057.3,0.55]
[1720493389321,2.2773,3057.8,3057.2,3.27091]
[1720493390533,3.2698,3058.3,3057.4,3.27075]
[1720493390852,3.2698,3058.3,3056.7,3.33683753]
[1720493390853,3.2699,3058.2,3057.3,3.27076]
[1720493391054,0.32698,3058.3,3057.6,3.27052]
[1720493391260,5.72732,3058.4,3057.6,3.27052]
[1720493391625,2.4576,3058.4,3057.7,3.27042]
[1720493391954,2.4576,3058.4,3057.5,3.27062]
[1720493392126,2.4576,3058.4,3057.6,3.27053]
[1720493392526,2.4576,3058.4,3057.7,3.2704]
[1720493392927,2.4576,3058.4,3057.7,3.33580108]
[1720493393474,3.26985,3058.3,3057.4,3.27067]
[1720493394872,3.030318,3058.4,3057.6,3.27052]
[1720493395543,6.300008,3058.4,3057.4,3.27067]
[1720493395750,0.6300008,3058.3,3057.5,3.27061]
[1720493396065,0.6300008,3058.3,3057.7,3.27042]
[1720493396223,2.3974,3059.0,3057.8,0.06540205]
[1720493396424,2.3974,3059.0,3058.1,3.26999]
[1720493396831,2.3974,3059.0,3057.8,0.06538663]
[1720493396832,2.63714,3059.0,3057.8,3.27021]
[1720493397031,2.63714,3059.0,3057.9,0.55]
[1720493397251,5.90618,3059.0,3057.9,0.55]
[1720493397452,5.90618,3059.0,3058.1,3.27]
[1720493397664,5.90618,3059.0,3058.2,3.2698]
[1720493397868,0.590618,3058.9,3058.2,3.2698]
[1720493398898,3.859798,3058.9,3057.9,3.2702]
[1720493399038,3.26926,3058.8,3057.7,3.27033]
[1720493399237,3.26949,3058.6,3057.7,3.27038]
[1720493399438,2.4445,3058.5,3057.5,3.27061]
[1720493399743,0.571399,3058.4,3057.5,3.27061]
[1720493400168,0.571399,3058.4,3057.4,3.27074]
[1720493400354,0.571399,3058.4,3057.1,12.021997]
[1720493400355,0.571399,3058.4,3057.5,3.27064]
[1720493400540,3.841109,3058.4,3057.5,3.27064]
[1720493400884,0.6285609,3058.3,3057.1,3.27105]
[1720493401173,3.27033,3057.8,3057.0,3.2711]
[1720493401389,5.71496,3057.7,3056.7,3.27146]
[1720493401684,2.4445,3057.7,3056.8,3.27138]
[1720493401977,2.4445,3057.7,3057.3,3.27085]
[1720493402952,2.4445,3057.7,3057.1,3.27107]
[1720493403153,2.4445,3057.7,3057.0,3.27116]
[1720493403349,2.4445,3057.7,3057.1,3.27105]
[1720493404153,2.4445,3057.7,3057.0,0.06541566]
[1720493404353,2.4445,3057.7,3057.5,3.27061]
[1720493404579,2.4191,3058.5,3057.6,3.27053]
[1720493404794,5.68867,3058.5,3057.6,3.27053]
[1720493405042,3.838617,3058.4,3057.4,3.27072]
[1720493405472,3.838617,3058.4,3057.2,3.27093]
[1720493405473,3.26982,3058.3,3057.2,3.27093]
[1720493405648,4.2225567,3058.3,3057.5,3.27061]
[1720493405854,3.2699,3058.2,3057.4,3.27067]
[1720493406373,3.2699,3058.2,3057.2,3.27088]
[1720493406571,0.74924567,3058.1,3057.2,3.27088]
[1720493406774,2.4113,3057.9,3057.0,3.27116]
[1720493406973,5.68158,3057.9,3057.1,3.27107]
[1720493407354,5.68158,3057.9,3056.9,3.27127]
[1720493407671,6.576746,3057.9,3057.0,3.27117]
[1720493407875,5.68158,3057.9,3057.0,3.27117]
[1720493408077,2.4113,3057.9,3056.5,3.33705454]
[1720493408277,2.4113,3057.9,3057.3,3.27077]
[1720493408857,2.4113,3057.9,3057.4,3.27075]
[1720493409054,2.4113,3057.9,3056.9,6.54247]
[1720493409270,6.249658,3057.9,3057.0,3.27111]
[1720493409473,6.249658,3057.9,3057.1,3.27107]
[1720493409687,3.27034,3057.8,3056.9,3.27121]
[1720493410184,6.249658,3057.9,3056.6,3.2715]
[1720493410185,2.979438,3057.9,3056.6,3.2715]
[1720493410369,2.4113,3057.6,3056.4,10.7118]
[1720493410580,2.4113,3057.6,3056.4,3.2718]
[1720493410874,3.27087,3057.3,3056.5,3.27167]
[1720493411394,3.27126,3057.0,3056.1,3.2721]
[1720493411695,3.27126,3057.0,3056.0,3.27223]
[1720493411696,3.2715,3056.7,3055.8,3.27242]
[1720493411870,2.4361,3056.6,3055.8,3.27245]
[1720493412071,5.70771,3056.6,3055.8,4.58397]
[1720493412608,2.4361,3056.6,3055.6,3.27257]
[1720493412961,2.4361,3056.6,3055.9,3.27233]
[1720493413509,2.4361,3056.6,3056.2,3.27203]
[1720493414897,2.4361,3056.6,3056.0,3.27224]
[1720493415194,2.4361,3056.6,3055.8,3.27244]
[1720493415789,2.67971,3056.6,3055.8,3.27244]
[1720493415975,2.67971,3056.6,3055.6,3.27266]
[1720493416180,2.67971,3056.6,3055.4,3.27285]
[1720493416385,2.67971,3056.6,3055.6,3.27266]
[1720493416567,2.67971,3056.6,3055.3,3.27291]
[1720493416770,0.496971,3056.5,3055.1,10.44]
[1720493416970,0.496971,3056.5,3055.1,3.0]
[1720493417176,0.3176681,3056.4,3055.2,3.27302]
[1720493417370,0.3176681,3056.4,3055.4,3.27279]
[1720493418327,0.3176681,3056.4,3055.5,3.27277]
[1720493419240,2.4361,3056.6,3056.1,3.27213]
[1720493419481,2.4361,3056.6,3056.2,3.27201]
[1720493419609,2.3789,3057.1,3056.4,3.27182]